fUSD/lending_fUSD_20250806
["ID","MTS","AMOUNT","RATE_DAILY","PERIOD"]
[377623299,1754463064933,-1174.96,0.0003589,14]
[377623300,1754463064943,-459.9,0.0003589,14]
[377623301,1754463064952,-400.0,0.0003589,14]
[377623302,1754463064961,-400.0,0.0003589,14]
[377623303,1754463064970,-400.0,0.0003589,14]
[377623304,1754463064980,-400.0,0.0003589,14]
[377623305,1754463064990,-400.0,0.0003589,14]
[377623306,1754463065002,-400.0,0.0003589,14]
[377623307,1754463065011,-400.0,0.0003589,14]
[377623308,1754463065021,-1619.24,0.0003589,14]
[377623309,1754463065031,-509.16,0.0003589,14]
[377623310,1754463065042,-515.01451102,0.0003589,14]
[377623311,1754463065051,-742.95,0.0003589,14]
[377623312,1754463065062,-400.0,0.0003589,5]
[377623313,1754463065073,-400.0,0.0003589,14]
[377623314,1754463065083,-400.0,0.0003589,14]
[377623315,1754463065094,-558.23,0.0003589,14]
[377623316,1754463065104,-400.0,0.0003589,14]
[377623317,1754463065115,-400.0,0.0003589,14]
[377623318,1754463065125,-400.0,0.0003589,14]
[377623319,1754463065136,-1419.39,0.0003589,14]
[377623320,1754463065146,-739.69,0.0003589,14]
[377623321,1754463065156,-400.0,0.0003589,14]
[377623322,1754463065165,-1089.64,0.0003589,14]
[377623323,1754463065176,-400.0,0.0003589,14]
[377623324,1754463065185,-642.3,0.0003589,14]
[377623325,1754463065194,-400.0,0.0003589,14]
[377623326,1754463065206,-930.59,0.0003589,14]
[377623327,1754463065216,-1496.69,0.0003589,14]
[377623328,1754463065225,-400.0,0.0003589,14]
[377623329,1754463065240,-942.1,0.0003589,14]
[377623330,1754463065250,-801.09,0.0003589,14]
[377623331,1754463065264,-400.0,0.0003589,14]
[377623332,1754463065273,-492.54,0.0003589,14]
[377623333,1754463065283,-1121.7,0.0003589,14]
[377623334,1754463065293,-1416.43,0.0003589,14]
[377623335,1754463065302,-519.65372147,0.0003589,14]
[377623336,1754463065312,-477.6,0.0003589,14]
[377623337,1754463065322,-400.0,0.0003589,14]
[377623338,1754463065331,-400.0,0.0003589,14]
[377623339,1754463065341,-400.0,0.0003589,14]
[377623340,1754463065351,-1200.5,0.0003589,14]
[377623341,1754463065360,-400.0,0.0003589,14]
[377623342,1754463065371,-400.0,0.0003589,14]
[377623343,1754463065381,-400.0,0.0003589,14]
[377623344,1754463065391,-1837.58,0.0003589,14]
[377623345,1754463065402,-400.0,0.0003589,14]
[377623346,1754463065412,-400.0,0.0003589,14]
[377623347,1754463065422,-400.0,0.0003589,14]
[377623348,1754463065431,-400.0,0.0003589,14]
[377623349,1754463065440,-790.58,0.0003589,14]
[377623350,1754463065451,-400.0,0.0003589,14]
[377623351,1754463065461,-1483.63,0.0003589,14]
[377623352,1754463065471,-1147.4,0.0003589,14]
[377623353,1754463065480,-1315.33,0.0003589,14]
[377623354,1754463065490,-1016.37,0.0003589,14]
[377623355,1754463065500,-972.91,0.0003589,14]
[377623356,1754463065510,-476.85,0.0003589,14]
[377623357,1754463065519,-603.46,0.0003589,14]
[377623358,1754463065528,-787.52,0.0003589,14]
[377623359,1754463065539,-400.0,0.0003589,14]
[377623360,1754463065548,-400.0,0.0003589,14]
[377623361,1754463065557,-1951.08,0.0003589,14]
[377623362,1754463065567,-400.0,0.0003589,14]
[377623363,1754463065577,-724.38,0.0003589,14]
[377623364,1754463065586,-400.0,0.0003589,14]
[377623365,1754463065596,-400.0,0.0003589,14]
[377623366,1754463065605,-479.39,0.0003589,14]
[377623367,1754463065614,-1636.29,0.0003589,14]
[377623368,1754463065624,-400.0,0.0003589,14]
[377623369,1754463065633,-400.0,0.0003589,14]
[377623370,1754463065643,-400.0,0.0003589,14]
[377623371,1754463065652,-517.37,0.0003589,14]
[377623372,1754463065661,-400.0,0.0003589,7]
[377623373,1754463065670,-648.73,0.0003589,14]
[377623374,1754463065680,-762.2,0.0003589,14]
[377623375,1754463065689,-400.0,0.0003589,14]
[377623376,1754463065698,-800.17,0.0003589,14]
[377623377,1754463065708,-462.55,0.0003589,14]
[377623378,1754463065717,-400.0,0.0003589,14]
[377623379,1754463065727,-1093.47,0.0003589,14]
[377623380,1754463065737,-746.52,0.0003589,14]
[377623381,1754463065746,-1365.08,0.0003589,14]
[377623382,1754463065756,-736.03,0.0003589,14]
[377623383,1754463065766,-400.0,0.0003589,14]
[377623384,1754463065776,-400.0,0.0003589,14]
[377623385,1754463065787,-573.68,0.0003589,14]
[377623386,1754463065796,-400.0,0.0003589,14]
[377623387,1754463065806,-400.0,0.0003589,14]
[377623388,1754463065816,-400.0,0.0003589,14]
[377623389,1754463065827,-400.0,0.0003589,14]
[377623390,1754463065837,-400.0,0.0003589,14]
[377623391,1754463065846,-400.0,0.0003589,14]
[377623392,1754463065857,-400.0,0.0003589,14]
[377623393,1754463065868,-1581.76,0.0003589,14]
[377623394,1754463065879,-555.73,0.0003589,14]
[377623395,1754463065888,-400.0,0.0003589,14]
[377623396,1754463065898,-1224.74,0.0003589,14]
[377623397,1754463065907,-400.0,0.0003589,14]
[377623398,1754463065918,-430.64,0.0003589,14]
[377623399,1754463065928,-400.0,0.0003589,14]
[377623400,1754463065938,-1124.6,0.0003589,14]
[377623401,1754463065948,-400.0,0.0003589,14]
[377623402,1754463065958,-151.0,0.0003589,7]
[377623403,1754463065967,-400.0,0.0003589,14]
[377623404,1754463065976,-400.0,0.0003589,14]
[377623405,1754463065986,-1184.25,0.0003589,14]
[377623406,1754463065996,-784.6,0.0003589,14]
[377623407,1754463066006,-1197.26,0.0003589,14]
[377623408,1754463066015,-760.0,0.0003589,14]
[377623409,1754463066025,-400.0,0.0003589,14]
[377623410,1754463066035,-400.0,0.0003589,14]
[377623411,1754463066045,-400.0,0.0003589,14]
[377623412,1754463066054,-400.0,0.0003589,14]
[377623413,1754463066064,-400.0,0.0003589,14]
[377623414,1754463066073,-391.79914406,0.0003589,14]
[377623415,1754463066083,-170.22,0.0003589,14]
[377623416,1754463066092,-849.91,0.0003589,14]
[377623417,1754463066102,-1637.75,0.0003589,14]
[377623418,1754463066111,-400.0,0.0003589,14]
[377623419,1754463066121,-472.07,0.0003589,14]
[377623420,1754463066131,-426.53,0.0003589,14]
[377623421,1754463066140,-774.49,0.0003589,14]
[377623422,1754463066150,-400.0,0.0003589,14]
[377623423,1754463066160,-567.53,0.0003589,14]
[377623424,1754463066170,-962.88,0.0003589,14]
[377623425,1754463066180,-1079.12,0.0003589,14]
[377623426,1754463066190,-1692.85,0.0003589,14]
[377623427,1754463066200,-1074.44,0.0003589,14]
[377623428,1754463066209,-473.97,0.0003589,14]
[377623429,1754463066219,-400.0,0.0003589,14]
[377623430,1754463066229,-400.0,0.0003589,14]
[377623431,1754463066239,-400.0,0.0003589,14]
[377623432,1754463066249,-400.0,0.0003589,14]
[377623433,1754463066259,-400.0,0.0003589,14]
[377623434,1754463066268,-400.0,0.0003589,14]
[377623435,1754463066278,-549.29,0.0003589,14]
[377623436,1754463066288,-428.9,0.0003589,14]
[377623437,1754463066297,-474.29,0.0003589,14]
[377623438,1754463066308,-1337.37,0.0003589,14]
[377623439,1754463066318,-400.0,0.0003589,14]
[377623440,1754463066327,-400.99701555,0.0003589,14]
[377623441,1754463066338,-400.0,0.0003589,14]
[377623442,1754463066347,-400.0,0.0003589,14]
[377623443,1754463066358,-400.0,0.0003589,14]
[377623444,1754463066368,-400.0,0.0003589,14]
[377623445,1754463066377,-400.0,0.0003589,14]
[377623446,1754463066387,-404.74,0.0003589,14]
[377623447,1754463066397,-1320.86,0.0003589,14]
[377623448,1754463066407,-889.33,0.0003589,14]
[377623449,1754463066418,-400.0,0.0003589,14]
[377623450,1754463066428,-931.22,0.0003589,14]
[377623451,1754463066438,-400.0,0.0003589,14]
[377623452,1754463066448,-447.8,0.0003589,14]
[377623453,1754463066458,-400.0,0.0003589,14]
[377623454,1754463066468,-775.08,0.0003589,14]
[377623455,1754463066477,-365.52,0.0003589,14]
[377623456,1754463066487,-400.0,0.0003589,14]
[377623457,1754463066497,-1735.42,0.0003589,14]
[377623458,1754463066507,-474.14,0.0003589,14]
[377623459,1754463066517,-1002.87,0.0003589,14]
[377623460,1754463066526,-400.0,0.0003589,14]
[377623461,1754463066536,-1490.34,0.0003589,14]
[377623462,1754463066546,-1701.81,0.0003589,14]
[377623463,1754463066555,-369.34767448,0.0003589,14]
[377623464,1754463066565,-400.0,0.0003589,14]
[377623465,1754463066575,-380.19245659,0.0003589,14]
[377623466,1754463066585,-400.0,0.0003589,14]
[377623467,1754463066595,-734.83,0.0003589,14]
[377623468,1754463066604,-969.48,0.0003589,14]
[377623469,1754463066614,-400.0,0.0003589,14]
[377623470,1754463066624,-1777.62,0.0003589,14]
[377623471,1754463066634,-793.75,0.0003589,14]
[377623472,1754463066644,-400.0,0.0003589,14]
[377623473,1754463066654,-1852.96,0.0003589,14]
[377623474,1754463066665,-400.0,0.0003589,14]
[377623475,1754463066674,-400.0,0.0003589,14]
[377623476,1754463066684,-400.0,0.0003589,14]
[377623477,1754463066693,-952.02,0.0003589,14]
[377623478,1754463066703,-400.0,0.0003589,14]
[377623479,1754463066713,-400.0,0.0003589,14]
[377623480,1754463066722,-1340.72,0.0003589,14]
[377623481,1754463066732,-400.0,0.0003589,14]
[377623482,1754463066742,-1000.55,0.0003589,14]
[377623483,1754463066751,-850.46,0.0003589,14]
[377623484,1754463066761,-971.55,0.0003589,14]
[377623485,1754463066771,-400.0,0.0003589,14]
[377623486,1754463066783,-400.0,0.0003589,14]
[377623487,1754463066793,-543.1,0.0003589,14]
[377623488,1754463066802,-1001.43,0.0003589,14]
[377623489,1754463066811,-400.0,0.0003589,14]
[377623490,1754463066822,-171.14166453,0.0003589,14]
[377623491,1754463066832,-1489.08,0.0003589,14]
[377623492,1754463066842,-877.72,0.0003589,14]
[377623493,1754463066854,-557.64,0.0003589,14]
[377623494,1754463066864,-1635.02,0.0003589,14]
[377623495,1754463066875,-870.47,0.0003589,14]
[377623496,1754463066885,-479.62,0.0003589,14]
[377623497,1754463066896,-400.0,0.0003589,14]
[377623498,1754463066906,-1284.64,0.0003589,14]
[377623499,1754463066919,-400.0,0.0003589,14]
[377623500,1754463066929,-1891.62,0.0003589,14]
[377623501,1754463066939,-1216.72,0.0003589,14]
[377623502,1754463066948,-1254.55,0.0003589,14]
[377623503,1754463067241,-400.0,0.0003589,14]
[377623504,1754463067266,-400.0,0.0003589,14]
[377623505,1754463067276,-969.33,0.0003589,14]
[377623506,1754463067286,-559.38,0.0003589,14]
[377623507,1754463067295,-400.0,0.0003589,14]
[377623508,1754463067304,-609.8,0.0003589,14]
[377623509,1754463067314,-962.46,0.0003589,14]
[377623510,1754463067323,-400.0,0.0003589,14]
[377623511,1754463067332,-1956.53,0.0003589,14]
[377623512,1754463067342,-400.0,0.0003589,14]
[377623513,1754463067352,-725.62,0.0003589,14]
[377623514,1754463067361,-425.57,0.0003589,14]
[377623515,1754463067371,-400.0,0.0003589,14]
[377623516,1754463067381,-1722.71,0.0003589,14]
[377623517,1754463067391,-400.0,0.0003589,14]
[377623518,1754463067401,-400.90146679,0.0003589,14]
[377623519,1754463067410,-1429.34,0.0003589,14]
[377623520,1754463067421,-419.08,0.0003589,14]
[377623521,1754463067430,-1780.34,0.0003589,14]
[377623522,1754463067440,-1728.66,0.0003589,14]
[377623523,1754463067449,-400.0,0.0003589,14]
[377623524,1754463067459,-400.0,0.0003589,14]
[377623525,1754463067469,-618.67,0.0003589,14]
[377623526,1754463067478,-634.49,0.0003589,14]
[377623527,1754463067488,-400.0,0.0003589,14]
[377623528,1754463067498,-1556.03,0.0003589,14]
[377623529,1754463067507,-400.0,0.0003589,14]
[377623530,1754463067517,-1234.53,0.0003589,14]
[377623531,1754463067527,-809.51,0.0003589,14]
[377623532,1754463067537,-400.0,0.0003589,14]
[377623533,1754463067547,-1438.61,0.0003589,14]
[377623534,1754463067556,-885.35,0.0003589,14]
[377623535,1754463067566,-1702.61,0.0003589,14]
[377623536,1754463067575,-1607.86,0.0003589,14]
[377623537,1754463067585,-400.0,0.0003589,14]
[377623538,1754463067595,-1546.96,0.0003589,14]
[377623539,1754463067604,-400.0,0.0003589,14]
[377623540,1754463067613,-906.17,0.0003589,14]
[377623541,1754463067623,-1139.73,0.0003589,14]
[377623542,1754463067633,-400.0,0.0003589,14]
[377623543,1754463067643,-400.0,0.0003589,14]
[377623544,1754463067652,-302.43,0.0003589,14]
[377623545,1754463067662,-400.0,0.0003589,14]
[377623546,1754463067672,-400.0,0.0003589,14]
[377623547,1754463067681,-400.0,0.0003589,14]
[377623548,1754463067691,-1095.89,0.0003589,14]
[377623549,1754463067701,-917.1,0.0003589,14]
[377623550,1754463067710,-649.0,0.0003589,14]
[377623551,1754463067719,-1006.08,0.0003589,14]
[377623552,1754463067728,-1229.8,0.0003589,14]
[377623553,1754463067739,-458.59,0.0003589,14]
[377623554,1754463067749,-400.0,0.0003589,14]
[377623555,1754463067758,-400.73040507,0.0003589,14]
[377623556,1754463067768,-684.71,0.0003589,14]
[377623557,1754463067780,-635.34,0.0003589,14]
[377623558,1754463067790,-1179.29,0.0003589,14]
[377623559,1754463067799,-400.0,0.0003589,14]
[377623560,1754463067809,-400.0,0.0003589,14]
[377623561,1754463067819,-400.0,0.0003589,14]
[377623562,1754463067828,-1950.26,0.0003589,14]
[377623563,1754463067838,-1890.91,0.0003589,14]
[377623564,1754463067847,-400.0,0.0003589,14]
[377623565,1754463067857,-2041.0,0.0003589,14]
[377623566,1754463067868,-400.0,0.0003589,14]
[377623567,1754463067878,-714.87,0.0003589,14]
[377623568,1754463067888,-400.0,0.0003589,14]
[377623569,1754463067897,-400.0,0.0003589,14]
[377623570,1754463067906,-400.0,0.0003589,14]
[377623571,1754463067918,-400.0,0.0003589,14]
[377623572,1754463067928,-1703.78,0.0003589,14]
[377623573,1754463067937,-1863.28,0.0003589,14]
[377623574,1754463067947,-400.0,0.0003589,14]
[377623575,1754463067956,-400.0,0.0003589,14]
[377623576,1754463067966,-507.38,0.0003589,14]
[377623577,1754463067976,-1394.32,0.0003589,14]
[377623578,1754463067986,-1941.71,0.0003589,14]
[377623579,1754463067997,-400.0,0.0003589,14]
[377623580,1754463068008,-1518.13,0.0003589,14]
[377623581,1754463068019,-400.0,0.0003589,14]
[377623582,1754463068028,-1023.45,0.0003589,14]
[377623583,1754463068038,-589.77,0.0003589,14]
[377623584,1754463068048,-400.0,0.0003589,14]
[377623585,1754463068057,-1322.42,0.0003589,14]
[377623586,1754463068067,-400.0,0.0003589,14]
[377623587,1754463068076,-1012.91,0.0003589,14]
[377623588,1754463068087,-1656.74,0.0003589,14]
[377623589,1754463068099,-400.0,0.0003589,14]
[377623590,1754463068109,-3266.64,0.0003589,14]
[377623591,1754463068119,-1190.75,0.0003589,14]
[377623592,1754463068128,-413.98,0.0003589,14]
[377623593,1754463068138,-1706.96,0.0003589,14]
[377623594,1754463068147,-461.41,0.0003589,14]
[377623595,1754463068157,-400.0,0.0003589,14]
[377623596,1754463068168,-400.0,0.0003589,14]
[377623597,1754463068178,-400.0,0.0003589,14]
[377623598,1754463068188,-936.27,0.0003589,14]
[377623599,1754463068198,-418.36,0.0003589,14]
[377623600,1754463068209,-400.0,0.0003589,14]
[377623601,1754463068218,-1753.07,0.0003589,14]
[377623602,1754463068228,-414.61,0.0003589,14]
[377623603,1754463068238,-462.31,0.0003589,14]
[377623604,1754463068248,-3137.43,0.0003589,14]
[377623605,1754463068258,-400.0,0.0003589,14]
[377623606,1754463068267,-400.0,0.0003589,14]
[377623607,1754463068277,-400.0,0.0003589,14]
[377623608,1754463068287,-1719.44,0.0003589,14]
[377623609,1754463068296,-2938.81,0.0003589,14]
[377623610,1754463068305,-1903.44,0.0003589,14]
[377623611,1754463068315,-400.0,0.0003589,14]
[377623612,1754463068326,-400.0,0.0003589,14]
[377623613,1754463068337,-1197.49,0.0003589,14]
[377623614,1754463068346,-6078.0,0.0003589,14]
[377623615,1754463068356,-662.71,0.0003589,14]
[377623616,1754463068366,-1903.71,0.0003589,14]
[377623617,1754463068376,-499.79,0.0003589,14]
[377623618,1754463068386,-1173.53,0.0003589,14]
[377623619,1754463068396,-400.0,0.0003589,14]
[377623620,1754463068406,-400.0,0.0003589,14]
[377623621,1754463068418,-511.06,0.0003589,14]
[377623622,1754463068427,-1986.28,0.0003589,14]
[377623623,1754463068437,-619.07,0.0003589,14]
[377623624,1754463068447,-400.0,0.0003589,2]
[377623625,1754463068457,-1016.72,0.0003589,14]
[377623626,1754463068467,-1058.32,0.0003589,14]
[377623627,1754463068476,-1710.63,0.0003589,14]
[377623628,1754463068487,-736.83,0.0003589,14]
[377623629,1754463068497,-1833.77,0.0003589,14]
[377623630,1754463068507,-1540.92,0.0003589,14]
[377623631,1754463068516,-1380.36,0.0003589,14]
[377623632,1754463068526,-407.64,0.0003589,14]
[377623633,1754463068536,-1238.0,0.0003589,14]
[377623634,1754463068546,-1834.04,0.0003589,14]
[377623635,1754463068555,-774.13,0.0003589,14]
[377623636,1754463068565,-400.0,0.0003589,14]
[377623637,1754463068575,-3309.39,0.0003589,14]
[377623638,1754463068584,-400.0,0.0003589,14]
[377623639,1754463068594,-400.0,0.0003589,14]
[377623640,1754463068604,-400.0,0.0003589,14]
[377623641,1754463068614,-400.0,0.0003589,14]
[377623642,1754463068623,-2618.41,0.0003589,14]
[377623643,1754463068632,-400.0,0.0003589,14]
[377623644,1754463068642,-400.0,0.0003589,14]
[377623645,1754463068651,-409.49,0.0003589,14]
[377623646,1754463068661,-400.0,0.0003589,14]
[377623647,1754463068672,-400.0,0.0003589,14]
[377623648,1754463068682,-518.95,0.0003589,14]
[377623649,1754463068691,-2941.21,0.0003589,14]
[377623650,1754463068700,-990.7,0.0003589,14]
[377623651,1754463068710,-1255.38,0.0003589,14]
[377623652,1754463068720,-400.0,0.0003589,14]
[377623653,1754463068729,-1404.28,0.0003589,14]
[377623654,1754463068739,-1025.5,0.0003589,14]
[377623655,1754463068748,-400.0,0.0003589,14]
[377623656,1754463068757,-483.49,0.0003589,14]
[377623657,1754463068767,-972.57,0.0003589,14]
[377623658,1754463068779,-400.0,0.0003589,14]
[377623659,1754463068788,-1693.75,0.0003589,14]
[377623660,1754463068798,-400.0,0.0003589,14]
[377623661,1754463068808,-400.0,0.0003589,14]
[377623662,1754463068819,-400.0,0.0003589,14]
[377623663,1754463068829,-841.17,0.0003589,14]
[377623664,1754463068839,-458.2,0.0003589,14]
[377623665,1754463068848,-943.2,0.0003589,14]
[377623666,1754463068858,-400.0,0.0003589,14]
[377623667,1754463068868,-400.0,0.0003589,14]
[377623668,1754463068878,-3048.41,0.0003589,14]
[377623669,1754463068888,-400.0,0.0003589,14]
[377623670,1754463068898,-1105.35,0.0003589,14]
[377623671,1754463068908,-559.03,0.0003589,14]
[377623672,1754463068918,-400.0,0.0003589,14]
[377623673,1754463068927,-1953.79,0.0003589,14]
[377623674,1754463068937,-1749.18,0.0003589,14]
[377623675,1754463068947,-400.0,0.0003589,14]
[377623676,1754463068957,-400.0,0.0003589,14]
[377623677,1754463068967,-815.76,0.0003589,14]
[377623678,1754463068977,-400.0,0.0003589,14]
[377623679,1754463068987,-400.0,0.0003589,14]
[377623680,1754463068997,-400.0,0.0003589,14]
[377623681,1754463069007,-446.47,0.0003589,14]
[377623682,1754463069016,-1257.53,0.0003589,14]
[377623683,1754463069026,-151.0,0.0003589,7]
[377623684,1754463069035,-400.0,0.0003589,14]
[377623685,1754463069045,-2900.13,0.0003589,14]
[377623686,1754463069055,-400.0,0.0003589,14]
[377623687,1754463069064,-151.0,0.0003589,7]
[377623688,1754463069074,-1137.85,0.0003589,14]
[377623689,1754463069084,-400.0,0.0003589,14]
[377623690,1754463069093,-275.352053,0.0003589,7]
[377623691,1754463069103,-400.0,0.0003589,14]
[377623692,1754463069113,-708.45,0.0003589,14]
[377623693,1754463069123,-400.0,0.0003589,14]
[377623694,1754463069132,-1298.27,0.0003589,14]
[377623695,1754463069142,-679.29,0.0003589,14]
[377623696,1754463069152,-704.39,0.0003589,14]
[377623697,1754463069161,-805.63,0.0003589,14]
[377623698,1754463069172,-400.0,0.0003589,14]
[377623699,1754463069182,-1108.53,0.0003589,14]
[377623700,1754463069192,-400.0,0.0003589,14]
[377623701,1754463069202,-400.0,0.0003589,14]
[377623702,1754463069212,-1650.14,0.0003589,14]
[377623703,1754463069221,-751.63,0.0003589,14]
[377623704,1754463069231,-1648.9,0.0003589,14]
[377623705,1754463069243,-794.61,0.0003589,14]
[377623706,1754463069252,-400.0,0.0003589,14]
[377623707,1754463069261,-409.49,0.0003589,14]
[377623708,1754463069271,-400.0,0.0003589,14]
[377623709,1754463069280,-400.0,0.0003589,14]
[377623710,1754463069290,-1806.83,0.0003589,14]
[377623711,1754463069299,-400.0,0.0003589,14]
[377623712,1754463069309,-400.0,0.0003589,14]
[377623713,1754463069319,-644.27,0.0003589,14]
[377623714,1754463069328,-2295.48,0.0003589,14]
[377623715,1754463069338,-1662.22,0.0003589,14]
[377623716,1754463069347,-1437.88,0.0003589,14]
[377623717,1754463069356,-419.66480923,0.0003589,14]
[377623718,1754463069365,-400.0,0.0003589,14]
[377623719,1754463069374,-2592.33,0.0003589,14]
[377623720,1754463069384,-400.0,0.0003589,14]
[377623721,1754463069394,-634.41,0.0003589,14]
[377623722,1754463069405,-2115.22,0.0003589,14]
[377623723,1754463069417,-1856.3,0.0003589,14]
[377623724,1754463069427,-3003.66,0.0003589,14]
[377623725,1754463069436,-895.01,0.0003589,14]
[377623726,1754463069446,-400.0,0.0003589,14]
[377623727,1754463069456,-1146.61,0.0003589,14]
[377623728,1754463069467,-400.0,0.0003589,14]
[377623729,1754463069476,-526.05,0.0003589,14]
[377623730,1754463069486,-569.9,0.0003589,14]
[377623731,1754463069495,-328.77,0.0003589,14]
[377623732,1754463069505,-1898.63,0.0003589,14]
[377623733,1754463069514,-2110.64,0.0003589,14]
[377623734,1754463069524,-1501.87,0.0003589,14]
[377623735,1754463069534,-400.0,0.0003589,14]
[377623736,1754463069543,-151.0,0.0003589,7]
[377623737,1754463069554,-630.14,0.0003589,14]
[377623738,1754463069564,-2192.62,0.0003589,14]
[377623739,1754463069573,-400.0,0.0003589,14]
[377623740,1754463069583,-400.0,0.0003589,14]
[377623741,1754463069593,-400.0,0.0003589,14]
[377623742,1754463069603,-456.04,0.0003589,14]
[377623743,1754463069612,-1620.13,0.0003589,14]
[377623744,1754463069622,-587.88,0.0003589,14]
[377623745,1754463069632,-2626.63,0.0003589,14]
[377623746,1754463069641,-213.177428,0.0003589,7]
[377623747,1754463069651,-1734.7,0.0003589,14]
[377623748,1754463069661,-213.177428,0.0003589,7]
[377623749,1754463069671,-213.177428,0.0003589,7]
[377623750,1754463069681,-1374.86,0.0003589,14]
[377623751,1754463069692,-411.23612413,0.0003589,14]
[377623752,1754463069702,-1614.73,0.0003589,14]
[377623753,1754463069711,-400.0,0.0003589,14]
[377623754,1754463069721,-400.0,0.0003589,14]
[377623755,1754463069833,-1139.31,0.0003589,14]
[377623756,1754463069843,-213.177428,0.0003589,7]
[377623757,1754463069851,-213.177428,0.0003589,7]
[377623758,1754463069859,-400.0,0.0003589,14]
[377623759,1754463069867,-213.177428,0.0003589,7]
[377623760,1754463069875,-400.0,0.0003589,14]
[377623761,1754463069883,-1182.42,0.0003589,14]
[377623762,1754463069892,-658.9,0.0003589,14]
[377623763,1754463069900,-534.74,0.0003589,14]
[377623764,1754463069910,-2535.1,0.0003589,14]
[377623765,1754463069921,-400.0,0.0003589,14]
[377623766,1754463069932,-435.26916505,0.0003589,14]
[377623767,1754463069942,-2893.61,0.0003589,14]
[377623768,1754463069950,-400.0,0.0003589,14]
[377623769,1754463069960,-1443.65,0.0003589,14]
[377623770,1754463069969,-400.0,0.0003589,14]
[377623771,1754463069979,-400.0,0.0003589,14]
[377623772,1754463069988,-1153.35,0.0003589,14]
[377623773,1754463069997,-2688.11,0.0003589,14]
[377623774,1754463070008,-753.02,0.0003589,14]
[377623775,1754463070017,-300.0,0.0003589,14]
[377623776,1754463070027,-1473.85,0.0003589,14]
[377623777,1754463070036,-2106.85,0.0003589,14]
[377623778,1754463070046,-2266.81,0.0003589,14]
[377623779,1754463070056,-1643.44,0.0003589,14]
[377623780,1754463070065,-400.0,0.0003589,14]
[377623781,1754463070075,-1043.8,0.0003589,14]
[377623782,1754463070088,-400.0,0.0003589,14]
[377623783,1754463070101,-751.21,0.0003589,14]
[377623784,1754463070111,-1058.49,0.0003589,14]
[377623785,1754463070121,-177.48083311,0.0003589,14]
[377623786,1754463070131,-400.0,0.0003589,14]
[377623787,1754463070140,-550.61,0.0003589,14]
[377623788,1754463070149,-422.67,0.0003589,14]
[377623789,1754463070159,-400.0,0.0003589,14]
[377623790,1754463070171,-400.0,0.0003589,14]
[377623791,1754463070181,-400.0,0.0003589,14]
[377623792,1754463070191,-400.0,0.0003589,14]
[377623793,1754463070200,-792.05,0.0003589,14]
[377623794,1754463070210,-923.63,0.0003589,14]
[377623795,1754463070219,-1458.48,0.0003589,14]
[377623796,1754463070229,-1541.94,0.0003589,14]
[377623797,1754463070240,-2263.64,0.0003589,14]
[377623798,1754463070250,-1845.61,0.0003589,14]